Cogmind - Beta 9.4 --- EXPLORER MODE // 2020.01.17 @ 01:13:00 // Winter2019/RPGLIKE Player: K.Ioz Result: Escaped! Performance ------------- Evolutions (9) 4500 Regions Visited (26) 5200 Robots Destroyed (164) 820 Value Destroyed (8215) 8215 Prototype IDs (55) 1100 Alien Tech Used (0) 0 Bonus (7920) 7920 TOTAL SCORE: 27755 Bonus ------- High Alert Combat Kills 348 Follower Combat Kills 2672 Network Hubs Disabled 200 Aligned with FarCom 300 Met Data Miner 300 Met Imprinter 300 Was Imprinted 300 Met R17 at Cetus 500 Win 3000 Cogmind --------- Core Integrity 2046/3000 Matter 300/300 Energy 542/550 System Corruption 4% Temperature Cool (8) Movement Hovering (43) Location To Epsilon Eridani Parts ------- > --- POWER (3) -------- Cooled Deuterium Engine Zionite Light DM Reactor Particle Reactor > --- PROPULSION (6) --- Improved Antigrav System Improved Linear Gravjet Antigrav Array Antigrav Array > --- UTILITY (9) ------ Advanced Signal Interpreter Advanced Terrain Scanner Advanced Melee Analysis Suite Nanoactuators Improved Maneuvering Thrusters Cloaking Device Improved System Shield > --- WEAPON (8) ------- Power Maul Thunder Hammer Chainsword Power Sword Molecular Scythe Nanosword Kinetic Spear Enhanced Force Lance > --- INVENTORY (4) ---- Antigrav System Advanced ECM Suite Advanced Force Field Plasma Rifle Peak State ------------ > --- POWER ------------ Cooled Deuterium Engine Zionite Light DM Reactor Particle Reactor > --- PROPULSION ------- Linear Gravjet Antigrav Array Antigrav Array Experimental Gyrokinetic Inverter > --- UTILITY ---------- Advanced Signal Interpreter Advanced Melee Analysis Suite Nanoactuators Improved Maneuvering Thrusters Cloaking Device Hardened Heavy Armor Plating Advanced Force Field Improved System Shield > --- WEAPON ----------- Power Maul Thunder Hammer Chainsword Power Sword Molecular Scythe Nanosword Kinetic Spear Enhanced Force Lance > --- INVENTORY -------- Antigrav System Advanced Terrain Scanner Advanced ECM Suite Plasma Rifle [Rating: 168] Favorites ----------- Power Cooled Deuterium Engine Engine Cooled Deuterium Engine Power Core Fission Core Reactor Zionite Light DM Reactor Propulsion Zionite Glidesys I Treads Light Treads Leg Carbon-fiber Leg Hover Unit Zionite Glidesys I Flight Unit Flying Fortress v7 Utility Advanced Signal Interpreter Device Improved Maneuvering Thrusters Processor Advanced Signal Interpreter Hackware Improved System Shield Protection Layered Medium Armor Plating Weapon Makeshift Axe Energy Gun Small Laser Energy Cannon YOLO Cannon Ballistic Gun Assault Rifle Ballistic Cannon Improved Light Cannon Impact Weapon Great Maul Slashing Weapon Makeshift Axe Piercing Weapon Enhanced Force Lance Build | -11 -10 -10 -10 -9 -8 -7 -7 -7 -7 -6 -6 -6 -6 -6 -5 -5 -5 -5 -5 -5 -4 -3 -2 -2 -1 -1 ------- Run | Scr Mat Min Exi Min Mat Fac Low Low Zio Pro Fac Low Low Dat Pro Fac Ext Cet Arc Hub Fac Res Res Tes Acc Com Slots Evolved 22 | . 3 . 2 . 1 2 . 1 1 4 . . . . 1 3 1 2 . . . 1 . . . . Power 2 | . . . . . . . . . . 1 . . . . . 1 . . . . . . . . . . Propulsion 5 | . 2 . 1 . . . . . . . . . . . . . . 2 . . . . . . . . Utility 8 | . 1 . . . 1 2 . 1 . 1 . . . . 1 1 . . . . . . . . . . Weapon 7 | . . . 1 . . . . . 1 2 . . . . . 1 1 . . . . 1 . . . . Parts Attached 129 | 4 12 . 4 . 3 5 1 5 1 24 7 6 2 . 4 11 1 13 1 3 1 2 8 1 9 1 Power 24 | 1 2 . 2 . 2 1 . . . 6 2 . . . . 2 . 3 1 . . . . . 2 . Engine 7 | 1 2 . 2 . 1 1 . . . . . . . . . . . . . . . . . . . . Core 8 | . . . . . 1 . . . . 3 2 . . . . 2 . . . . . . . . . . Reactor 9 | . . . . . . . . . . 3 . . . . . . . 3 1 . . . . . 2 . Propulsion 39 | 1 3 . 1 . . . . . . 13 3 5 . . . 2 . 5 . . . 1 . 1 3 1 Treads 2 | . . . . . . . . . . 1 . . . . . . . 1 . . . . . . . . Leg 13 | 1 . . . . . . . . . 8 3 1 . . . . . . . . . . . . . . Wheel . | . . . . . . . . . . . . . . . . . . . . . . . . . . . Hover 16 | . . . . . . . . . . . . 4 . . . 2 . 4 . . . 1 . 1 3 1 Flight 8 | . 3 . 1 . . . . . . 4 . . . . . . . . . . . . . . . . Utility 37 | 1 5 . . . 1 4 1 3 . 2 1 1 2 . 3 3 . 5 . . . . 2 . 3 . Device 24 | . 3 . . . 1 2 1 2 . 2 1 1 . . 1 2 . 3 . . . . 2 . 3 . Storage . | . . . . . . . . . . . . . . . . . . . . . . . . . . . Processor 6 | 1 1 . . . . 1 . . . . . . 2 . 1 . . . . . . . . . . . Hackware 1 | . . . . . . . . . . . . . . . 1 . . . . . . . . . . . Protection 6 | . 1 . . . . 1 . 1 . . . . . . . 1 . 2 . . . . . . . . Artifact . | . . . . . . . . . . . . . . . . . . . . . . . . . . . Weapon 29 | 1 2 . 1 . . . . 2 1 3 1 . . . 1 4 1 . . 3 1 1 6 . 1 . Energy Gun 1 | 1 . . . . . . . . . . . . . . . . . . . . . . . . . . Energy Cannon 2 | . . . 1 . . . . . . . . . . . . . . . . . . . 1 . . . Ballistic Gun 2 | . 1 . . . . . . . . . . . . . . . . . . . . . 1 . . . Ballistic Cannon 2 | . 1 . . . . . . . . . . . . . . . . . . 1 . . . . . . Launcher . | . . . . . . . . . . . . . . . . . . . . . . . . . . . Special Weapon . | . . . . . . . . . . . . . . . . . . . . . . . . . . . Impact Weapon 6 | . . . . . . . . . . 1 . . . . . 2 1 . . 2 . . . . . . Slashing Weapon 14 | . . . . . . . . 2 1 2 1 . . . 1 2 . . . . 1 . 3 . 1 . Piercing Weapon 2 | . . . . . . . . . . . . . . . . . . . . . . 1 1 . . . Special Melee Weapon . | . . . . . . . . . . . . . . . . . . . . . . . . . . . Unidentified Prototypes 16 | . . . . . . 1 . . . . . 1 . . . 1 . 4 . 1 1 . 3 1 3 . Parts Lost 1 | . . . . . . . . . . . . . . . . . . . . . . . . . . 1 Power . | . . . . . . . . . . . . . . . . . . . . . . . . . . . Propulsion . | . . . . . . . . . . . . . . . . . . . . . . . . . . . Utility 1 | . . . . . . . . . . . . . . . . . . . . . . . . . . 1 Weapon . | . . . . . . . . . . . . . . . . . . . . . . . . . . . Highest Loss Streak 1 | . . . . . . . . . . . . . . . . . . . . . . . . . . 1 Average Slot Usage (%) 84 | . 94 100 67 55 60 61 66 68 76 87 93 92 94 94 89 95 95 94 92 91 92 90 87 88 88 87 Engine 6 | . 17 14 11 11 8 9 8 7 7 5 5 5 5 5 5 4 4 4 4 4 4 3 3 3 3 3 Core 2 | . . . . . 1 . . . . 2 5 5 5 5 5 4 8 . . . . . . . . . Reactor 1 | . . . . . . . . . . 1 . . . . . . . 7 8 8 8 7 7 7 7 7 Leg 5 | . 10 . . . . . . . . 14 21 14 5 5 5 . . . . . . . . . . . Hover 6 | . . . . . . . . . . . . 6 16 16 12 19 17 17 20 20 20 17 15 15 15 15 Flight 4 | . 18 42 19 11 10 9 8 7 7 1 . . . . . . . . . . . . . . . . Device 20 | . 14 14 11 11 20 18 25 26 28 29 27 25 18 16 14 18 17 16 16 16 16 15 14 15 15 15 Processor 8 | . 6 14 11 11 10 9 8 7 7 5 5 5 13 16 15 10 8 8 8 8 8 7 7 7 7 7 Hackware 1 | . . . . . . . . . . . . . . . 4 4 4 4 4 4 4 3 3 3 3 3 Protection 4 | . 7 . . . . 6 8 7 7 5 5 5 5 5 5 4 4 4 4 4 4 3 3 3 3 2 Energy Cannon 2 | . . . 7 11 10 9 8 5 . . . . . . . . . . . . . . . . . . Impact Weapon 5 | . . . . . . . . . . 2 5 5 5 5 5 12 16 16 16 15 16 15 11 11 7 7 Slashing Weapon 10 | . . . . . . . . 3 18 14 15 16 16 16 13 13 13 12 12 12 12 11 11 11 14 15 Naked Turns . | . . . . . . . . . . . . . . . . . . . . . . . . . . . Heaviest Build 109 | 4 11 10 24 24 29 37 37 43 33 63 58 58 57 55 55 82 85 105 95 93 94 102 102 101 109 93 Greatest Support 127 | 10 12 12 72 72 72 72 72 72 72 72 70 70 66 66 66 85 85 127 127 127 127 127 119 119 115 113 Greatest Overweight (x) 12 | . 1 . . . . . . . . 12 3 1 . . 1 . . 2 . . . . . . 1 . Average Overweight (x) . | . . . . . . . . . . . . . . . . . . . . . . . . . . . Largest Inventory Capacity 4 | . 1 1 1 1 1 1 2 2 2 3 3 3 3 3 3 3 3 4 4 4 4 4 4 4 4 4 Average Capacity 2 | . . 1 1 1 1 1 1 2 2 2 3 3 3 3 3 3 3 3 4 4 4 4 4 4 4 4 Most Carried 4 | . 1 1 1 1 1 1 2 2 2 3 3 3 3 3 3 3 3 4 4 4 4 4 4 4 4 4 Average Carried 2 | . . 1 . 1 1 1 1 1 2 2 3 2 2 3 2 2 3 3 4 4 4 4 4 4 4 4 Final Capacity 4 | . 1 1 1 1 1 1 2 2 2 3 3 3 3 3 3 3 3 4 4 4 4 4 4 4 4 4 Final Carried 4 | . 1 1 1 1 1 1 2 2 2 3 3 2 3 3 2 3 3 4 4 4 4 4 4 4 4 4 Class Distribution -------------------- 24% | Messiah-Ninja 24% | Hacker-Scout 18% | Messiah-Assassin 16% | Messiah-Scout 8% | Messiah-Gladiator 4% | Hacker-Mutant Dominant Class ---------------- Hacker-Mutant | -10/Materials Scavenger-Scout | -10/Mines Hacker-Scout | -10/Exiles Hacker-Scout | -9/Mines Hacker-Scout | -8/Materials Hacker-Scout | -7/Factory Hacker-Scout | -7/Lower Caves Hacker-Scout | -7/Lower Caves Messiah-Scout | -7/Zion Messiah-Assassin | -6/Proximity Caves Messiah-Gladiator | -6/Factory Messiah-Assassin | -6/Lower Caves Messiah-Scout | -6/Lower Caves Messiah-Scout | -6/Data Miner Messiah-Scout | -5/Proximity Caves Messiah-Ninja | -5/Factory Messiah-Ninja | -5/Extension Messiah-Assassin | -5/Cetus Messiah-Ninja | -5/Archives Messiah-Ninja | -5/Hub_04(d) Messiah-Ninja | -4/Factory Messiah-Ninja | -3/Research Messiah-Ninja | -2/Research Messiah-Ninja | -2/Testing Messiah-Ninja | -1/Access Messiah-Ninja | -1/Command Resources | -11 -10 -10 -10 -9 -8 -7 -7 -7 -7 -6 -6 -6 -6 -6 -5 -5 -5 -5 -5 -5 -4 -3 -2 -2 -1 -1 ----------- Run | Scr Mat Min Exi Min Mat Fac Low Low Zio Pro Fac Low Low Dat Pro Fac Ext Cet Arc Hub Fac Res Res Tes Acc Com Matter Collected 1789 | 240 260 . . 40 21 39 30 22 38 240 117 82 28 . 105 97 40 130 10 30 10 20 40 . 130 20 Remotely . | . . . . . . . . . . . . . . . . . . . . . . . . . . . Salvage Created 6447 | . 203 . . 95 357 . . . . 215 467 77 28 . 199 393 469 290 154 475 402 91 413 34 1269 816 Parts 381 | . 21 . . 2 21 3 . . . 13 32 8 3 . 20 21 44 14 10 22 15 5 15 5 56 51 Haulers Intercepted . | . . . . . . . . . . . . . . . . . . . . . . . . . . . Recyclers Shooed 1 | . . . . . . . . . . . . . . . . 1 . . . . . . . . . . Parts Field Recycled . | . . . . . . . . . . . . . . . . . . . . . . . . . . . Retrieved Matter . | . . . . . . . . . . . . . . . . . . . . . . . . . . . Parts Self-Destructed . | . . . . . . . . . . . . . . . . . . . . . . . . . . . Prevented . | . . . . . . . . . . . . . . . . . . . . . . . . . . . Kills | -11 -10 -10 -10 -9 -8 -7 -7 -7 -7 -6 -6 -6 -6 -6 -5 -5 -5 -5 -5 -5 -4 -3 -2 -2 -1 -1 ------- Run | Scr Mat Min Exi Min Mat Fac Low Low Zio Pro Fac Low Low Dat Pro Fac Ext Cet Arc Hub Fac Res Res Tes Acc Com Combat Hostiles Destroyed 136 | . 6 . . 2 11 3 . . . 6 12 3 1 . 9 9 18 6 4 6 6 2 4 . 14 14 Melee 113 | . . . . . . . . . . 6 12 3 1 . 9 9 17 6 4 6 6 2 4 . 14 14 Cannons 16 | . 6 . . 2 7 1 . . . . . . . . . . . . . . . . . . . . AOE 5 | . . . . . 4 1 . . . . . . . . . . . . . . . . . . . . Classes Destroyed 15 | . 5 . . 1 2 1 . . . 2 2 . . . . . . . 1 . . . . . . 1 Worker 4 | . 2 . . . . . . . . . . . . . . 2 . . . . . . . . . . Builder 2 | . 1 . . . 1 . . . . . . . . . . . . . . . . . . . . . Tunneler 2 | . . . . . . . . . . . 1 . . . . . . . . . 1 . . . . . Mechanic 1 | . . . . . 1 . . . . . . . . . . . . . . . . . . . . . Operator 2 | . . . . . . . . . . . . . . . . . . . 1 . . . . 1 . . Watcher 17 | . 3 . . . 1 . . . . . 2 . . . . . . . . 2 1 . 1 . 5 2 Swarmer 40 | . 4 . . . . . . . . 1 3 1 1 . 6 1 8 1 . . 4 . . . 3 7 Grunt 39 | . 2 . . 1 7 . . . . 1 6 1 . . . 4 8 . . 3 1 . . . 4 1 Duelist 2 | . . . . 1 . . . . . . 1 . . . . . . . . . . . . . . . Sentry 21 | . . . . . 4 1 . . . 1 1 . . . . . 1 . 4 3 1 . 2 . 3 . Hunter 10 | . . . . . . 2 . . . . . . . . . 3 1 . . . . 2 2 . . . Programmer 11 | . . . . . . . . . . . 1 . . . . 1 . . . . . . . . 4 5 Behemoth 1 | . . . . . . . . . . 1 . . . . . . . . . . . . . . . . Cetus Guard 5 | . . . . . . . . . . . . . . . . . . 5 . . . . . . . . Striker 1 | . . . . . . . . . . . . . . . . . . . . . . . . . . 1 Master Thief 6 | . . . . . . . . . . 2 . 1 . . 3 . . . . . . . . . . . Best Kill Streak 8 | . 5 . . 2 5 2 . . . 2 3 1 1 . 3 3 4 3 3 2 5 2 2 1 8 7 Combat Bots Only 7 | . 4 . . 2 4 2 . . . 2 3 1 1 . 3 3 4 3 2 2 4 2 2 . 7 7 Max Kills in Single Turn 2 | . 1 . . 1 2 1 . . . 1 1 1 1 . 1 1 1 1 1 1 1 1 1 1 1 1 Gunslinging . | . . . . . . . . . . . . . . . . . . . . . . . . . . . Exploded 2 | . . . . . 2 1 . . . . . . . . . . . . . . . . . . . . Melee 1 | . . . . . . . . . . 1 1 1 1 . 1 1 1 1 1 1 1 1 1 . 1 1 Uniques/NPCs Destroyed . | . . . . . . . . . . . . . . . . . . . . . . . . . . . Combat | -11 -10 -10 -10 -9 -8 -7 -7 -7 -7 -6 -6 -6 -6 -6 -5 -5 -5 -5 -5 -5 -4 -3 -2 -2 -1 -1 -------- Run | Scr Mat Min Exi Min Mat Fac Low Low Zio Pro Fac Low Low Dat Pro Fac Ext Cet Arc Hub Fac Res Res Tes Acc Com Damage Taken 7495 | . 37 . . . 238 6 . . . 202 1111 74 52 . 131 475 372 828 535 348 159 16 54 . 1043 1814 Core 4887 | . 23 . . . 184 4 . . . 141 724 55 26 . 98 290 229 555 364 209 95 9 30 . 662 1189 Absorbed by Shields 333 | . . . . . . . . . . . . . . . . . 39 20 . . 8 16 57 . 73 120 Redirected to Core 4231 | . 23 . . . 175 4 . . . 120 634 35 26 . 78 250 183 481 276 165 95 9 30 . 614 1033 Core Remaining (%) 87 | 100 . . . 96 84 . . . . 100 . . . . 100 . . . . 76 74 73 . 99 . 68 Volleys Fired 63 | . 35 . . 2 18 7 1 . . . . . . . . . . . . . . . . . . . Largest 1 | . 1 . . 1 1 1 1 . . . . . . . . . . . . . . . . . . . Hottest 100 | . 39 . . 100 100 100 100 . . . . . . . . . . . . . . . . . . . Shots Fired 63 | . 35 . . 2 18 7 1 . . . . . . . . . . . . . . . . . . . Gun . | . . . . . . . . . . . . . . . . . . . . . . . . . . . Cannon 63 | . 35 . . 2 18 7 1 . . . . . . . . . . . . . . . . . . . Launcher . | . . . . . . . . . . . . . . . . . . . . . . . . . . . Special . | . . . . . . . . . . . . . . . . . . . . . . . . . . . Kinetic 35 | . 35 . . . . . . . . . . . . . . . . . . . . . . . . . Thermal 28 | . . . . 2 18 7 1 . . . . . . . . . . . . . . . . . . . Explosive . | . . . . . . . . . . . . . . . . . . . . . . . . . . . Electromagnetic . | . . . . . . . . . . . . . . . . . . . . . . . . . . . Robot Hit Streak 17 | . 6 . . 7 12 17 . . . . . . . . . . . . . . . . . . . . Robot Miss Streak 3 | . 3 . . . 1 1 2 . . . . . . . . . . . . . . . . . . . Penetration Max . | . . . . . . . . . . . . . . . . . . . . . . . . . . . Secondary Targets . | . . . . . . . . . . . . . . . . . . . . . . . . . . . Shots Hit Robots 540 | . 27 . . 2 15 5 . . . 27 65 8 2 . 31 38 77 43 44 25 21 2 15 1 58 34 Core Hits 214 | . 14 . . 2 20 3 . . . 10 24 4 1 . 10 11 25 10 10 10 9 2 7 1 24 17 Critical Hits 32 | . . . . . 6 . . . . 1 2 . . . . 2 2 4 2 . . . 3 . 5 5 Critical Kills 15 | . . . . . 2 . . . . . . . . . . 2 1 2 1 . . . 2 . 2 3 Critical Parts Destroyed 14 | . . . . . 3 . . . . 1 2 . . . . . . 1 1 . . . 1 . 3 2 Melee Attacks 568 | . . . . . . . . . . 33 70 8 2 . 37 45 84 44 46 31 27 4 19 2 70 46 Impact 130 | . . . . . . . . . . . 5 1 . . 6 11 27 13 18 11 8 1 2 1 18 8 Slashing 369 | . . . . . . . . . . 33 65 7 2 . 31 34 57 31 28 20 19 1 9 . 16 16 Piercing 69 | . . . . . . . . . . . . . . . . . . . . . . 2 8 1 36 22 Sneak Attacks 15 | . . . . . . . . . . . 2 . . . . 4 1 . 1 . 2 . . 1 1 3 Combat Hostiles 4 | . . . . . . . . . . . . . . . . . 1 . . . . . . . 1 2 Follow-up Attacks 195 | . . . . . . . . . . 6 19 2 1 . 8 12 38 19 19 12 9 . 7 . 29 14 Damage Inflicted 26653 | . 589 . . 465 3130 920 74 . . 1083 1968 311 87 . 1315 1922 2943 1692 1686 984 1088 175 866 192 2934 2229 Guns . | . . . . . . . . . . . . . . . . . . . . . . . . . . . Cannons 3109 | . 589 . . 295 1680 545 . . . . . . . . . . . . . . . . . . . . Explosions 2069 | . . . . 170 1450 375 74 . . . . . . . . . . . . . . . . . . . Melee 21386 | . . . . . . . . . . 1083 1968 311 87 . 1315 1833 2943 1692 1686 984 1088 175 866 192 2934 2229 Ramming 89 | . . . . . . . . . . . . . . . . 89 . . . . . . . . . . Kinetic 589 | . 589 . . . . . . . . . . . . . . . . . . . . . . . . . Thermal 4589 | . . . . 465 3130 920 74 . . . . . . . . . . . . . . . . . . . Explosive . | . . . . . . . . . . . . . . . . . . . . . . . . . . . Electromagnetic . | . . . . . . . . . . . . . . . . . . . . . . . . . . . Impact 3155 | . . . . . . . . . . . 94 36 . . 152 314 704 395 534 203 120 . 32 . 399 172 Slashing 13789 | . . . . . . . . . . 1083 1874 275 87 . 1163 1519 2239 1297 1152 781 968 . 291 . 592 468 Piercing 4442 | . . . . . . . . . . . . . . . . . . . . . . 175 543 192 1943 1589 Highest Corruption 7 | . . . . . . . . . . . 4 4 4 4 4 . . . . 7 . . . . 1 4 Average Corruption 3 | . . . . . . . . . . . 2 4 4 4 4 . . . . 2 . . . . 1 2 Corruption Purged . | . . . . . . . . . . . . . . . . . . . . . . . . . . . Effects 63 | . . . . . . . . . . . 23 7 4 5 23 . . . . . . . . . . 1 Message Errors 8 | . . . . . . . . . . . 2 2 . 1 3 . . . . . . . . . . . Matter Fused 21 | . . . . . . . . . . . 7 2 2 3 7 . . . . . . . . . . . Heat Flow Errors 14 | . . . . . . . . . . . 3 1 2 . 7 . . . . . . . . . . 1 Energy Discharges 9 | . . . . . . . . . . . 5 1 . 1 2 . . . . . . . . . . . Parts Rejected 1 | . . . . . . . . . . . . 1 . . . . . . . . . . . . . . Data Loss (minor) 4 | . . . . . . . . . . . 1 . . . 3 . . . . . . . . . . . Targeting Errors 6 | . . . . . . . . . . . 5 . . . 1 . . . . . . . . . . . Overload Shots . | . . . . . . . . . . . . . . . . . . . . . . . . . . . Overflow Damage 1946 | . 32 . . 44 365 145 49 . . 6 83 27 2 . 114 314 109 125 91 17 152 . . . 66 205 Projectiles 326 | . 32 . . . 196 98 . . . . . . . . . . . . . . . . . . . . Explosions 309 | . . . . 44 169 47 49 . . . . . . . . . . . . . . . . . . . Melee 1311 | . . . . . . . . . . 6 83 27 2 . 114 314 109 125 91 17 152 . . . 66 205 Knockbacks 19 | . 5 . . . . . . . . . . . . . 1 5 1 3 1 . 1 . . . . 2 Impact 13 | . . . . . . . . . . . . . . . 1 5 1 2 1 . 1 . . . . 2 Kinetic 4 | . 4 . . . . . . . . . . . . . . . . . . . . . . . . . Secondary 2 | . 1 . . . . . . . . . . . . . . . . 1 . . . . . . . . Self-Inflicted Damage 44 | . . . . . . . . . . . . . . . . 44 . . . . . . . . . . Shots . | . . . . . . . . . . . . . . . . . . . . . . . . . . . Rammed 2 | . . . . . . . . . . . . . . . . 2 . . . . . . . . . . Targets Rammed 2 | . . . . . . . . . . . . . . . . 2 . . . . . . . . . . Kicked . | . . . . . . . . . . . . . . . . . . . . . . . . . . . Crushed . | . . . . . . . . . . . . . . . . . . . . . . . . . . . Highest Temperature 434 | . 54 . . 109 193 135 61 . . 45 434 248 271 . 285 . 15 34 . 7 . . . 1 3 165 Average Temperature 88 | . 10 . . 56 69 61 41 . . 21 185 101 115 . 105 . 8 12 . 3 . . . 1 2 73 Received Heat Transfer 1780 | . 18 . . . 198 . . . . 105 510 9 18 . 12 112 145 214 153 47 27 . 8 . 159 45 Effects 2 | . . . . . . . . . . . 2 . . . . . . . . . . . . . . . Shutdowns 2 | . . . . . . . . . . . 2 . . . . . . . . . . . . . . . Siege Activations . | . . . . . . . . . . . . . . . . . . . . . . . . . . . Robots Corrupted . | . . . . . . . . . . . . . . . . . . . . . . . . . . . Combat Hostiles . | . . . . . . . . . . . . . . . . . . . . . . . . . . . Parts Fried 13 | . . . . . . . . . . . . . . . . . 1 . 2 . 1 . 1 . 6 2 Impact Corruptions 22 | . . . . . . . . . . . . . . . . 4 2 4 3 . 2 . . . 3 4 Robots Melted 1 | . . . . . . 1 . . . . . . . . . . . . . . . . . . . . Combat Hostiles 1 | . . . . . . 1 . . . . . . . . . . . . . . . . . . . . Parts Melted 6 | . . . . . 2 1 . . . . . . . . . 1 1 . . . . . . . . 1 Heat Transferred 4240 | . . . . 400 2960 800 80 . . . . . . . . . . . . . . . . . . . Parts Sabotaged . | . . . . . . . . . . . . . . . . . . . . . . . . . . . Parts Stolen 11 | . . . . . . . . 1 . 6 . . . . 4 . . . . . . . . . . . Parts Stripped . | . . . . . . . . . . . . . . . . . . . . . . . . . . . Power Chain Reactions . | . . . . . . . . . . . . . . . . . . . . . . . . . . . Missiles Intercepted . | . . . . . . . . . . . . . . . . . . . . . . . . . . . Alert | -11 -10 -10 -10 -9 -8 -7 -7 -7 -7 -6 -6 -6 -6 -6 -5 -5 -5 -5 -5 -5 -4 -3 -2 -2 -1 -1 ------- Run | Scr Mat Min Exi Min Mat Fac Low Low Zio Pro Fac Low Low Dat Pro Fac Ext Cet Arc Hub Fac Res Res Tes Acc Com Peak Influence 829 | . 157 29 . 50 256 307 . . . . 520 . . . . 479 308 416 223 423 301 172 135 61 409 829 Average Influence 144 | . 50 29 . 10 117 125 . . . . 146 . . . . 230 131 238 186 145 226 130 75 60 183 537 Maximum Alert Level 3 | . . . . . 1 1 . . . . 2 . . . . 2 1 2 1 2 1 . . . 2 3 Low Security (%) 69 | 100 100 100 . 100 89 52 . . . . 68 . . . . 39 76 23 45 77 46 100 100 100 61 . Level 1 20 | . . . . . 10 47 . . . . 16 . . . . 22 23 63 54 21 53 . . . 18 27 Level 2 8 | . . . . . . . . . . . 15 . . . . 38 . 12 . . . . . . 20 37 Level 3 1 | . . . . . . . . . . . . . . . . . . . . . . . . . . 34 Level 4 . | . . . . . . . . . . . . . . . . . . . . . . . . . . . Level 5 . | . . . . . . . . . . . . . . . . . . . . . . . . . . . High Security . | . . . . . . . . . . . . . . . . . . . . . . . . . . . Max Security . | . . . . . . . . . . . . . . . . . . . . . . . . . . . Squads Dispatched 22 | . . . . . 4 2 . . . . 6 . . . . 1 2 . . 2 1 2 . 1 . 1 Investigation 10 | . . . . . 1 1 . . . . 2 . . . . . 2 . . 1 1 1 . 1 . . Extermination 5 | . . . . . . . . . . . 3 . . . . 1 . . . . . . . . . 1 Reinforcement 5 | . . . . . 2 . . . . . 1 . . . . . . . . 1 . 1 . . . . Assault 2 | . . . . . 1 1 . . . . . . . . . . . . . . . . . . . . Garrison . | . . . . . . . . . . . . . . . . . . . . . . . . . . . Intercept . | . . . . . . . . . . . . . . . . . . . . . . . . . . . Construction Impeded 1 | . . . . . 1 . . . . . . . . . . . . . . . . . . . . . Haulers Reinforced 1 | . . . . . . . . . . . 1 . . . . . . . . . . . . . . . Stealth | -11 -10 -10 -10 -9 -8 -7 -7 -7 -7 -6 -6 -6 -6 -6 -5 -5 -5 -5 -5 -5 -4 -3 -2 -2 -1 -1 --------- Run | Scr Mat Min Exi Min Mat Fac Low Low Zio Pro Fac Low Low Dat Pro Fac Ext Cet Arc Hub Fac Res Res Tes Acc Com Distress Signals 17 | . 1 . . . 2 . . . . . 3 . . . . . 2 2 . 1 1 . 1 . 2 2 Communications Jammed . | . . . . . . . . . . . . . . . . . . . . . . . . . . . Distress Signals . | . . . . . . . . . . . . . . . . . . . . . . . . . . . Times Spotted 306 | . 11 . . 2 19 5 2 1 . 21 31 11 10 . 14 14 31 33 4 24 8 2 5 . 26 32 Peak Tracking Total 10 | . 3 . . 2 6 2 2 1 . 3 6 6 9 . 4 3 5 8 2 8 4 2 2 . 10 9 Tactical Retreats 22 | . . . . . 3 1 . . . . 8 . 3 . . 2 1 2 . . . . . . 1 1 Traps | -11 -10 -10 -10 -9 -8 -7 -7 -7 -7 -6 -6 -6 -6 -6 -5 -5 -5 -5 -5 -5 -4 -3 -2 -2 -1 -1 ------- Run | Scr Mat Min Exi Min Mat Fac Low Low Zio Pro Fac Low Low Dat Pro Fac Ext Cet Arc Hub Fac Res Res Tes Acc Com Traps Triggered 12 | . . . . . . 3 . . . . 2 . . . . 1 2 . . . 1 . . . . 3 Indirectly . | . . . . . . . . . . . . . . . . . . . . . . . . . . . Trap Hack Attempts . | . . . . . . . . . . . . . . . . . . . . . . . . . . . Triggered . | . . . . . . . . . . . . . . . . . . . . . . . . . . . Disarmed . | . . . . . . . . . . . . . . . . . . . . . . . . . . . Reprogrammed . | . . . . . . . . . . . . . . . . . . . . . . . . . . . Reused . | . . . . . . . . . . . . . . . . . . . . . . . . . . . Traps Extracted . | . . . . . . . . . . . . . . . . . . . . . . . . . . . Installed . | . . . . . . . . . . . . . . . . . . . . . . . . . . . Triggered 3 | . . . . 1 . . . . . . . . 2 . . . . . . . . . . . . . Machines | -11 -10 -10 -10 -9 -8 -7 -7 -7 -7 -6 -6 -6 -6 -6 -5 -5 -5 -5 -5 -5 -4 -3 -2 -2 -1 -1 ---------- Run | Scr Mat Min Exi Min Mat Fac Low Low Zio Pro Fac Low Low Dat Pro Fac Ext Cet Arc Hub Fac Res Res Tes Acc Com Machines Disabled 17 | . . . . . 5 2 . . . . 2 . . . . . 3 2 . . . . . . 2 1 Max in Single Turn 1 | . . . . . 1 1 . . . . . . . . . . . . . . . . . . . . Garrison Access 4 | . . . . . 1 1 . . . . . . . . . . . . . . 1 . . . 1 . Network Hub 1 | . . . . . . . . . . . . . . . . . . . . 1 . . . . . . Energy Cycler 2 | . . . . . . . . . . . . . . . . . 2 . . . . . . . . . Machines Sabotaged . | . . . . . . . . . . . . . . . . . . . . . . . . . . . Garrisons Compromised . | . . . . . . . . . . . . . . . . . . . . . . . . . . . Overloaded Fab Kills . | . . . . . . . . . . . . . . . . . . . . . . . . . . . Fab Network Shutdowns 2 | . . . . . . . . . . . 1 . . . . 1 . . . . . . . . . . Hacking | -11 -10 -10 -10 -9 -8 -7 -7 -7 -7 -6 -6 -6 -6 -6 -5 -5 -5 -5 -5 -5 -4 -3 -2 -2 -1 -1 --------- Run | Scr Mat Min Exi Min Mat Fac Low Low Zio Pro Fac Low Low Dat Pro Fac Ext Cet Arc Hub Fac Res Res Tes Acc Com Machines Accessed 37 | . 9 . 2 . 3 8 . 2 1 . 1 . 1 4 . 2 . . 1 . 2 . . . 1 . Terminals 18 | . 8 . . . 3 7 . . . . . . . . . . . . . . . . . . . . Fabricators 4 | . . . . . . . . . . . 1 . . . . 2 . . . . 1 . . . . . Repair Stations . | . . . . . . . . . . . . . . . . . . . . . . . . . . . Recycling Units 1 | . 1 . . . . . . . . . . . . . . . . . . . . . . . . . Scanalyzers . | . . . . . . . . . . . . . . . . . . . . . . . . . . . Garrison Access 3 | . . . . . . 1 . . . . . . . . . . . . . . 1 . . . 1 . Total Hacks 126 | . 20 . 2 . 7 18 . 2 5 . 3 . 1 31 . 5 . . 25 . 6 . . . 1 . Successful 104 | . 15 . 2 . 3 9 . 2 5 . 2 . 1 31 . 4 . . 25 . 4 . . . 1 . Failed 22 | . 5 . . . 4 9 . . . . 1 . . . . 1 . . . . 2 . . . . . Catastrophic 4 | . . . . . 3 1 . . . . . . . . . . . . . . . . . . . . Database Lockouts . | . . . . . . . . . . . . . . . . . . . . . . . . . . . Manual 141 | . 9 . 4 . 7 6 . . 13 . 12 . . 5 . 5 29 9 6 12 2 2 2 . 11 7 Terminals 41 | . 18 . . . 7 16 . . . . . . . . . . . . . . . . . . . . Fabricators 12 | . . . . . . . . . . . 3 . . . . 5 . . . . 4 . . . . . Repair Stations . | . . . . . . . . . . . . . . . . . . . . . . . . . . . Recycling Units 2 | . 2 . . . . . . . . . . . . . . . . . . . . . . . . . Scanalyzers . | . . . . . . . . . . . . . . . . . . . . . . . . . . . Garrison Access 5 | . . . . . . 2 . . . . . . . . . . . . . . 2 . . . 1 . Terminal Hacks 90 | . 13 . 2 . 3 8 . 2 5 . . . 1 31 . . . . 25 . . . . . . . Record 37 | . . . 1 . . . . . . . . . . 11 . . . . 25 . . . . . . . Part Schematic 17 | . . . . . . 1 . . 5 . . . . 11 . . . . . . . . . . . . Robot Schematic 6 | . . . . . . . . . . . . . . 6 . . . . . . . . . . . . Robot Analysis 3 | . 1 . . . . 2 . . . . . . . . . . . . . . . . . . . . Prototype ID Bank 6 | . 3 . . . . . . . . . . . . 3 . . . . . . . . . . . . Open Door 3 | . . . . . . . . 2 . . . . 1 . . . . . . . . . . . . . Branch Access Points 2 | . . . . . 1 1 . . . . . . . . . . . . . . . . . . . . Alert Level 1 | . 1 . . . . . . . . . . . . . . . . . . . . . . . . . Unreport Threat 3 | . . . . . 1 2 . . . . . . . . . . . . . . . . . . . . Locate Traps 8 | . 5 . . . 1 2 . . . . . . . . . . . . . . . . . . . . Disarm Traps 1 | . 1 . . . . . . . . . . . . . . . . . . . . . . . . . Registered Components 1 | . 1 . . . . . . . . . . . . . . . . . . . . . . . . . Registered Prototypes 1 | . 1 . . . . . . . . . . . . . . . . . . . . . . . . . EX-Prototype ID Bank 1 | . . . 1 . . . . . . . . . . . . . . . . . . . . . . . Fabricator Hacks 9 | . . . . . . . . . . . 2 . . . . 4 . . . . 3 . . . . . Load Schematic 5 | . . . . . . . . . . . 1 . . . . 2 . . . . 2 . . . . . Build 4 | . . . . . . . . . . . 1 . . . . 2 . . . . 1 . . . . . Repair Station Hacks . | . . . . . . . . . . . . . . . . . . . . . . . . . . . Recycling Unit Hacks 2 | . 2 . . . . . . . . . . . . . . . . . . . . . . . . . Process 1 | . 1 . . . . . . . . . . . . . . . . . . . . . . . . . Report Inventory 1 | . 1 . . . . . . . . . . . . . . . . . . . . . . . . . Scanalyzer . | . . . . . . . . . . . . . . . . . . . . . . . . . . . Garrison Access Hacks 3 | . . . . . . 1 . . . . . . . . . . . . . . 1 . . . 1 . Unlock Access 1 | . . . . . . 1 . . . . . . . . . . . . . . . . . . . . Seal Access 2 | . . . . . . . . . . . . . . . . . . . . . 1 . . . 1 . Unauthorized Hacks . | . . . . . . . . . . . . . . . . . . . . . . . . . . . Terminals . | . . . . . . . . . . . . . . . . . . . . . . . . . . . Fabricators . | . . . . . . . . . . . . . . . . . . . . . . . . . . . Repair Stations . | . . . . . . . . . . . . . . . . . . . . . . . . . . . Recycling Units . | . . . . . . . . . . . . . . . . . . . . . . . . . . . Scanalyzers . | . . . . . . . . . . . . . . . . . . . . . . . . . . . Garrison Access . | . . . . . . . . . . . . . . . . . . . . . . . . . . . Data Cores Recovered . | . . . . . . . . . . . . . . . . . . . . . . . . . . . Used . | . . . . . . . . . . . . . . . . . . . . . . . . . . . Hacking Detections 23 | . 8 . . . 2 8 . . . . 1 . . . . 2 . . . . 2 . . . . . Full Trace Events 3 | . . . . . 1 1 . . . . 1 . . . . . . . . . . . . . . . Feedback Events . | . . . . . . . . . . . . . . . . . . . . . . . . . . . Feedback Blocked . | . . . . . . . . . . . . . . . . . . . . . . . . . . . Robot Schematics Acquired 6 | . . . . . . . . . . . . . . 6 . . . . . . . . . . . . Robots Built 3 | . . . . . . . . . . . . . . . . 3 . . . . . . . . . . Matter 570 | . . . . . . . . . . . . . . . . 285 . . . . 285 . . . . . Time 126 | . . . . . . . . . . . . . . . . 50 . . . . 76 . . . . . Total Robot Build Rating 15 | . . . . . . . . . . . . . . . . 15 . . . . . . . . . . Part Schematics Acquired 17 | . . . . . . 1 . . 5 . . . . 11 . . . . . . . . . . . . Parts Built 2 | . . . . . . . . . . . 2 . . . . . . . . . . . . . . . Matter 168 | . . . . . . . . . . . 168 . . . . . . . . . . . . . . . Time 42 | . . . . . . . . . . . 42 . . . . . . . . . . . . . . . Total Part Build Rating 8 | . . . . . . . . . . . 8 . . . . . . . . . . . . . . . Parts Repaired . | . . . . . . . . . . . . . . . . . . . . . . . . . . . Time . | . . . . . . . . . . . . . . . . . . . . . . . . . . . Parts Recycled . | . . . . . . . . . . . . . . . . . . . . . . . . . . . Recycled Matter 212 | . 212 . . . . . . . . . . . . . . . . . . . . . . . . . Retrieved Matter . | . . . . . . . . . . . . . . . . . . . . . . . . . . . Retrieved Components . | . . . . . . . . . . . . . . . . . . . . . . . . . . . Parts Scanalyzed . | . . . . . . . . . . . . . . . . . . . . . . . . . . . Part Schematics Acquired . | . . . . . . . . . . . . . . . . . . . . . . . . . . . Parts Damaged . | . . . . . . . . . . . . . . . . . . . . . . . . . . . Bothacking | -11 -10 -10 -10 -9 -8 -7 -7 -7 -7 -6 -6 -6 -6 -6 -5 -5 -5 -5 -5 -5 -4 -3 -2 -2 -1 -1 ------------ Run | Scr Mat Min Exi Min Mat Fac Low Low Zio Pro Fac Low Low Dat Pro Fac Ext Cet Arc Hub Fac Res Res Tes Acc Com Used RIF Installer . | . . . . . . . . . . . . . . . . . . . . . . . . . . . Robots Hacked . | . . . . . . . . . . . . . . . . . . . . . . . . . . . Non-combat . | . . . . . . . . . . . . . . . . . . . . . . . . . . . Combat . | . . . . . . . . . . . . . . . . . . . . . . . . . . . Robot Hacks Applied . | . . . . . . . . . . . . . . . . . . . . . . . . . . . Relay Couplers Released 2 | . . . . . 2 . . . . . . . . . . . . . . . . . . . . . Machine Destruction 2 | . . . . . 2 . . . . . . . . . . . . . . . . . . . . . Robots Rewired 3 | . . . . . . . . . . . . . . . . 1 1 . . . . . . 1 . . Allies Hacked 2 | . . . . . . . . . . . . . . . 1 . . . . . . . . . . 1 Hacks Repelled . | . . . . . . . . . . . . . . . . . . . . . . . . . . . Allies | -11 -10 -10 -10 -9 -8 -7 -7 -7 -7 -6 -6 -6 -6 -6 -5 -5 -5 -5 -5 -5 -4 -3 -2 -2 -1 -1 -------- Run | Scr Mat Min Exi Min Mat Fac Low Low Zio Pro Fac Low Low Dat Pro Fac Ext Cet Arc Hub Fac Res Res Tes Acc Com Total Allies 86 | . . . . . . . . . 11 . 6 . . . 1 8 18 5 . 8 3 1 1 1 4 19 Largest Group 19 | . . . . . . . . . 11 10 4 3 . . 1 7 13 9 . 7 3 1 1 2 2 19 Highest-Rated Group 1642 | . . . . . . . . . 482 444 304 210 . . 94 195 377 472 . 338 288 30 146 266 266 1642 Highest-Rated Ally 191 | . . . . . . . . . 94 94 94 70 . . 94 29 148 148 . 85 96 30 146 146 146 191 Zionite Dispatches 22 | . . . . . . . . . . . 3 . . . . 1 4 3 . 3 1 1 1 . 5 . Heavy 1 | . . . . . . . . . . . . . . . . . . . . 1 . . . . . . Light 4 | . . . . . . . . . . . 2 . . . . . . 1 . . 1 . . . . . Recon 2 | . . . . . . . . . . . 1 . . . . . . . . . . . . . 1 . Fire 4 | . . . . . . . . . . . . . . . . 1 2 . . 1 . . . . . . Hacker 1 | . . . . . . . . . . . . . . . . . . . . 1 . . . . . . Hero 1 | . . . . . . . . . . . . . . . . . . . . . . . 1 . . . Thermal Resupply 1 | . . . . . . . . . . . . . . . . . . 1 . . . . . . . . Explosive Resupply 1 | . . . . . . . . . . . . . . . . . 1 . . . . . . . . . Melee Resupply 1 | . . . . . . . . . . . . . . . . . . 1 . . . . . . . . Offense Resupply 1 | . . . . . . . . . . . . . . . . . 1 . . . . . . . . . Defense Resupply 1 | . . . . . . . . . . . . . . . . . . . . . . . . . 1 . Heavy Resupply 1 | . . . . . . . . . . . . . . . . . . . . . . 1 . . . . Infowar Resupply 2 | . . . . . . . . . . . . . . . . . . . . . . . . . 2 . Zionite Resupply 1 | . . . . . . . . . . . . . . . . . . . . . . . . . 1 . Total Orders 3 | . . . . . . . . . . . . . . . 1 1 . . . . . 1 . . . . EXPLORE 3 | . . . . . . . . . . . . . . . 1 1 . . . . . 1 . . . . Ally Attacks 545 | . . . . . . . . . . 126 57 17 . . 19 14 105 115 . 29 3 . 2 . 17 41 Total Damage 14899 | . . . . . . . . . . 2816 1094 433 . . 567 271 1923 2587 . 1658 126 . 95 . 1157 2172 Kills 93 | . . . . . . . . . . 20 10 5 . . 2 2 14 19 . 6 . . . . 8 7 Allies Corrupted 9 | . . . . . . . . . . . . . . . . . . . . 3 . . . . 1 5 Allies Melted 1 | . . . . . . . . . . . . . . . . 1 . . . . . . . . . . Intel | -11 -10 -10 -10 -9 -8 -7 -7 -7 -7 -6 -6 -6 -6 -6 -5 -5 -5 -5 -5 -5 -4 -3 -2 -2 -1 -1 ------- Run | Scr Mat Min Exi Min Mat Fac Low Low Zio Pro Fac Low Low Dat Pro Fac Ext Cet Arc Hub Fac Res Res Tes Acc Com Robot Analysis Total 3 | . 1 . . . . 2 . . . . . . . . . . . . . . . . . . . . Derelict Logs Recovered 12 | . . . . 1 . . 2 1 1 2 . 2 2 . 1 . . . . . . . . . . . Drone Launches 8 | . . . . . . . . . . . . . . . . 2 4 . . . . 2 . . . . Drone Recoveries . | . . . . . . . . . . . . . . . . . . . . . . . . . . . Zionite Intel Received 4 | . . . . . . . . . . . 1 . . . . . 2 . . . . . . . . 1 Main Access 1 | . . . . . . . . . . . . . . . . . . . . . . . . . . 1 Branch Access 1 | . . . . . . . . . . . 1 . . . . . . . . . . . . . . . Active Garrisons 1 | . . . . . . . . . . . . . . . . . 1 . . . . . . . . . Depthwide Sectors/-1 1 | . . . . . . . . . . . . . . . . . 1 . . . . . . . . . Exploration | -11 -10 -10 -10 -9 -8 -7 -7 -7 -7 -6 -6 -6 -6 -6 -5 -5 -5 -5 -5 -5 -4 -3 -2 -2 -1 -1 ------------- Run | Scr Mat Min Exi Min Mat Fac Low Low Zio Pro Fac Low Low Dat Pro Fac Ext Cet Arc Hub Fac Res Res Tes Acc Com Turns Passed 15913 | 155 652 210 358 739 1096 784 279 314 940 1707 1906 453 330 226 983 529 1112 742 234 363 157 435 173 84 634 318 Spaces Moved 16357 | 155 741 300 544 676 595 993 383 589 1377 1487 1054 473 452 200 925 722 1195 649 265 446 260 344 184 132 759 457 Core 83 | 57 . . . . . . . . . 26 . . . . . . . . . . . . . . . . Treads 36 | . . . . . . . . . . 36 . . . . . . . . . . . . . . . . Legs 2378 | 98 219 . . . . . . . . 806 1054 201 . . . . . . . . . . . . . . Wheels . | . . . . . . . . . . . . . . . . . . . . . . . . . . . Hover 7262 | . . . . . . . . . . . . 272 452 200 925 722 1195 649 265 446 260 344 184 132 759 457 Flight 6598 | . 522 300 544 676 595 993 383 589 1377 619 . . . . . . . . . . . . . . . . Fastest Speed 34 | 50 34 34 34 50 50 50 50 50 50 50 120 62 62 62 62 53 53 48 48 48 48 48 53 48 43 43 Average Speed 64 | 94 63 34 45 50 50 50 50 50 50 101 120 87 62 62 65 53 53 95 48 48 48 49 53 48 57 43 Slowest Speed 650 | 120 150 34 50 50 50 50 50 50 50 650 210 150 62 62 136 68 53 186 48 48 48 53 53 53 98 43 Overloaded Moves . | . . . . . . . . . . . . . . . . . . . . . . . . . . . Propulsion Burnouts . | . . . . . . . . . . . . . . . . . . . . . . . . . . . Robots Hopped 27 | . 2 1 . 14 3 5 . . . 2 . . . . . . . . . . . . . . . . Cave-ins Triggered 1 | . . . . . . . . . . . . . . . . . . . . . . . . . 1 . Exploration Rate (%) 53 | 4 99 58 93 81 40 16 54 69 89 94 24 68 58 79 91 22 95 78 100 47 14 7 3 21 18 21 Regions Visited 26 Branch Regions 17 Pre-discovered Areas 10 | . . 1 . . . . 1 1 1 . . . . 1 . . 5 . . . . . . . . . Known Exits Taken 26 | 1 1 1 1 1 1 1 1 1 1 1 1 1 1 1 1 1 1 1 1 1 1 1 1 1 1 . Unknown Exits Taken . | . . . . . . . . . . . . . . . . . . . . . . . . . . . Scrap Searched 16 | . . . . 1 . . 1 . 3 4 . . 2 . 5 . . . . . . . . . . . Spaces Dug 24 | . . . . . 24 . . . . . . . . . . . . . . . . . . . . . Terrain Destroyed 241 | . 2 . . 36 180 16 7 . . . . . . . . . . . . . . . . . . . Melee . | . . . . . . . . . . . . . . . . . . . . . . . . . . . Projectile 5 | . 2 . . . 2 . 1 . . . . . . . . . . . . . . . . . . . AOE 236 | . . . . 36 178 16 6 . . . . . . . . . . . . . . . . . . . Actions | -11 -10 -10 -10 -9 -8 -7 -7 -7 -7 -6 -6 -6 -6 -6 -5 -5 -5 -5 -5 -5 -4 -3 -2 -2 -1 -1 --------- Run | Scr Mat Min Exi Min Mat Fac Low Low Zio Pro Fac Low Low Dat Pro Fac Ext Cet Arc Hub Fac Res Res Tes Acc Com Total 21242 | 162 880 406 653 1056 1335 1252 466 606 1627 1655 1659 507 500 301 1280 840 1636 746 349 581 279 607 248 150 913 548 Wait 4007 | 4 85 108 98 393 715 245 81 11 248 85 504 9 44 102 318 33 362 26 23 99 1 257 30 15 77 34 Move 16276 | 154 736 297 543 647 588 982 382 588 1376 1482 1053 472 451 199 924 721 1194 648 264 445 259 343 183 131 758 456 Hop 27 | . 2 1 . 14 3 5 . . . 2 . . . . . . . . . . . . . . . . Pick Up 9 | . 1 . 1 . . . 1 1 1 1 . . . . . 1 1 . . . . . . . 1 . Fast Attach 118 | 4 12 . 4 . 3 5 . 3 1 24 6 5 2 . 3 10 1 12 1 3 1 2 8 1 6 1 Attach 3 | . . . . . . . . 1 . . . 1 . . 1 . . . . . . . . . . . Detach 7 | . 1 . . . . 1 . . . . . . 1 . 1 2 . 1 . . . . . . . . Swap 8 | . . . . . . . 1 1 . . 1 . . . . 1 . 1 . . . . . . 3 . Drop 81 | . 8 . 7 . 2 2 . 1 1 12 3 5 1 . . 4 1 10 1 3 1 2 8 1 7 1 Fire 63 | . 35 . . 2 18 7 1 . . . . . . . . . . . . . . . . . . . Melee 303 | . . . . . . . . . . 25 48 6 1 . 23 26 39 24 25 13 13 2 8 1 29 20 Ram 2 | . . . . . . . . . . . . . . . . 2 . . . . . . . . . . Kick . | . . . . . . . . . . . . . . . . . . . . . . . . . . . Crush . | . . . . . . . . . . . . . . . . . . . . . . . . . . . Escape Stasis 24 | . . . . . . 2 . . . . . . . . . . 13 . . . . . . . . 9 Rewire 29 | . . . . . . . . . . . . . . . . 14 2 . . 6 . . . 1 . 6 Trap . | . . . . . . . . . . . . . . . . . . . . . . . . . . . Miscellaneous 285 | . . . . . 6 3 . . . 24 44 9 . . 10 26 23 24 35 12 4 1 11 . 32 21 Route ------- -11/Scrapyard -10/Materials (discovered 5 exits: *Mat x3 / *Min x2) -10/Mines -10/Exiles (discovered 2 exits: *Min x2) -9/Mines -8/Materials -7/Factory (discovered 2 exits: *Low x2) -7/Lower Caves -7/Lower Caves -7/Zion (discovered 2 exits: Dee / *Pro) -6/Proximity Caves -6/Factory (discovered 3 exits: Fac / *Low x2) -6/Lower Caves -6/Lower Caves (discovered 2 exits: *Fac / *Dat) -6/Data Miner -5/Proximity Caves -5/Factory (discovered 2 exits: Upp / *Ext) -5/Extension (discovered 2 exits: *Fac / *Cet) -5/Cetus (discovered 3 exits: *Fac x2 / *Arc) -5/Archives (discovered 3 exits: *Fac / *Hub x2) -5/Hub_04(d) (discovered 3 exits: *Fac x3) -4/Factory -3/Research -2/Research -2/Testing -1/Access -1/Command (discovered 2 exits: *Sur x2) To Epsilon Eridani History --------- Turn | Location | Event 6 | -11/Scrapyard | Identified exit to Materials 6 | -11/Scrapyard | Discovered exit to Materials (range 15) 156 | -11/Scrapyard | Entered Materials 224 | -10/Materials | Upgraded with Utility slot (x1) 282 | -10/Materials | Identified exit to Mines 282 | -10/Materials | Discovered exit to Mines (range 15) 313 | -10/Materials | Build established: Hacker-Mutant 476 | -10/Materials | Upgraded with Propulsion slot (x1) 509 | -10/Materials | Identified exit to Materials 509 | -10/Materials | Discovered exit to Materials (range 16) 598 | -10/Materials | Discovered exit to Materials (range 16) 633 | -10/Materials | Discovered exit to Mines (range 10) 678 | -10/Materials | Upgraded with Propulsion slot (x1) 727 | -10/Materials | Discovered exit to Materials (range 11) 808 | -10/Materials | Entered Mines 848 | -10/Mines | Met a Derelict bent on vengeance 909 | -10/Mines | Identified exit to Exiles 909 | -10/Mines | Discovered exit to Exiles (range 14) 915 | -10/Mines | Learned location of Storage (-9) 930 | -10/Mines | Deemed a non-threat by the Exiles lab entrance 978 | -10/Mines | Build established: Scavenger-Scout 1018 | -10/Mines | Entered Exiles 1020 | -10/Exiles | Reached level 2 1023 | -10/Exiles | Identified exit to Mines 1023 | -10/Exiles | Discovered exit to Mines (range 18) 1030 | -10/Exiles | Met 8R-AWN 1069 | -10/Exiles | Met EX-HEX 1097 | -10/Exiles | Met EX-BIN 1102 | -10/Exiles | Aligned with FarCom system 1102 | -10/Exiles | Given EX-Vault access code 1114 | -10/Exiles | Opened EX-Vault 1117 | -10/Exiles | Upgraded with Propulsion slot (x1) 1119 | -10/Exiles | Found Flying Fortress v7 1125 | -10/Exiles | Found Longsword +1 1127 | -10/Exiles | Upgraded with Weapon slot (x1) 1128 | -10/Exiles | Found YOLO Cannon 1144 | -10/Exiles | Warned to stay clear of 0b10 Research branches 1159 | -10/Exiles | Met EX-DEC 1193 | -10/Exiles | Visited The Gauntlet 1260 | -10/Exiles | Discovered exit to Mines (range 10) 1376 | -10/Exiles | Stole three prototypes: Flying Fortress v7, Longsword +1, YOLO Cannon 1376 | -10/Exiles | Entered Mines 1413 | -9/Mines | Build established: Hacker-Scout 1774 | -9/Mines | Identified exit to Materials 1774 | -9/Mines | Discovered exit to Materials (range 8) 1960 | -9/Mines | Reached level 3 2115 | -9/Mines | Entered Materials 2117 | -8/Materials | Reached level 4 2117 | -8/Materials | Reached level 5 2118 | -8/Materials | Upgraded with Utility slot (x1) 2163 | -8/Materials | Reached level 6 2595 | -8/Materials | Reached level 7 2697 | -8/Materials | Identified exit to Factory 2697 | -8/Materials | Discovered exit to Factory (range 14) 3211 | -8/Materials | Entered Factory 3213 | -7/Factory | FarCom data flow suspended 3213 | -7/Factory | Reached level 8 3213 | -7/Factory | Reached level 9 3220 | -7/Factory | Identified exit to Garrison 3236 | -7/Factory | Reached level 10 3439 | -7/Factory | Upgraded with Utility slot (x1) 3693 | -7/Factory | Identified exit to Lower Caves 3980 | -7/Factory | Upgraded with Utility slot (x1) 3995 | -7/Factory | Entered Lower Caves 3997 | -7/Lower Caves | Reached level 11 4039 | -7/Lower Caves | Identified exit to Lower Caves 4159 | -7/Lower Caves | Spotted B-75 Beast 4231 | -7/Lower Caves | Learned location of Extension (-5) 4268 | -7/Lower Caves | Spotted LW-UWS(f) 4269 | -7/Lower Caves | Encountered a Master Thief 4274 | -7/Lower Caves | Spotted TJ-OY0(f) 4274 | -7/Lower Caves | Entered another Lower Caves area 4451 | -7/Lower Caves | Identified exit to Zion 4451 | -7/Lower Caves | Discovered exit to Zion (range 17) 4468 | -7/Lower Caves | Upgraded with Utility slot (x1) 4481 | -7/Lower Caves | Spotted BX-PCI(f) 4482 | -7/Lower Caves | Encountered a Master Thief 4493 | -7/Lower Caves | YOLO Cannon stolen by Master Thief 4588 | -7/Lower Caves | Entered Zion 4598 | -7/Zion | Given A8's code to call for help 4608 | -7/Zion | Identified exit to Proximity Caves 4608 | -7/Zion | Discovered exit to Proximity Caves (range 18) 4628 | -7/Zion | Enhanced Grunt warped into view, answering call for help 4632 | -7/Zion | Enhanced Grunt warped into view, answering call for help 4693 | -7/Zion | Gained Derelict followers 4729 | -7/Zion | Identified exit to Deep Caves 4729 | -7/Zion | Discovered exit to Deep Caves (range 10) 4841 | -7/Zion | Learned Factory scanalyzer intel 4849 | -7/Zion | Learned Factory emergency access door positions 4957 | -7/Zion | Reached level 12 4957 | -7/Zion | Imprinted 4959 | -7/Zion | Declared Zion's savior 5029 | -7/Zion | Upgraded with Weapon slot (x1) 5110 | -7/Zion | Received a hallucinogenic algorithm 5260 | -7/Zion | Build established: Messiah-Scout 5264 | -7/Zion | Visited the Megawrench Repair Shop 5268 | -7/Zion | Megawrench repaired 3 parts 5528 | -7/Zion | Entered Proximity Caves 5528 | -6/Proximity Caves | Accompanied by 10 allies 5586 | -6/Proximity Caves | Reached level 13 5737 | -6/Proximity Caves | Spotted 08-7AD(f) 5738 | -6/Proximity Caves | Encountered a Master Thief 5739 | -6/Proximity Caves | Longsword +1 stolen by Master Thief 5821 | -6/Proximity Caves | Attracted the attention of an 0b10 checkpoint 5826 | -6/Proximity Caves | Identified exit to Factory 5826 | -6/Proximity Caves | Discovered exit to Factory (range 20) 5838 | -6/Proximity Caves | Learned Factory terminal intel 5922 | -6/Proximity Caves | Spotted 6G-YZ4(f) 5923 | -6/Proximity Caves | Encountered a Master Thief 5923 | -6/Proximity Caves | Flying Fortress v7 stolen by Master Thief 5931 | -6/Proximity Caves | Spotted CZ-V3H(f) 5932 | -6/Proximity Caves | Encountered a Master Thief 5936 | -6/Proximity Caves | Destroyed CZ-V3H(f) 5948 | -6/Proximity Caves | Upgraded with Utility slot (x1) 6110 | -6/Proximity Caves | Reached level 14 6128 | -6/Proximity Caves | Spotted OO-XE9(f) 6130 | -6/Proximity Caves | Encountered a Master Thief 6134 | -6/Proximity Caves | Allies destroyed OO-XE9(f) 6149 | -6/Proximity Caves | Upgraded with Power slot (x1) 6208 | -6/Proximity Caves | Build established: Messiah-Assassin 6343 | -6/Proximity Caves | P-60 Hacker assimilated allied 5I-15E(i) 6715 | -6/Proximity Caves | Spotted B-75 Beast 6720 | -6/Proximity Caves | Upgraded with Weapon slot (x1) 6735 | -6/Proximity Caves | Reached level 15 6735 | -6/Proximity Caves | Destroyed B-75 Beast 6775 | -6/Proximity Caves | Spotted V1-WJP(f) 6776 | -6/Proximity Caves | Encountered a Master Thief 6777 | -6/Proximity Caves | Lgt. Antimatter Reactor stolen by Master Thief 6869 | -6/Proximity Caves | Spotted BU-5OF(f) 6870 | -6/Proximity Caves | Encountered a Master Thief 6873 | -6/Proximity Caves | Nanoactuators stolen by Master Thief 6937 | -6/Proximity Caves | Spotted IY-VC4(f) 6938 | -6/Proximity Caves | Encountered a Master Thief 6942 | -6/Proximity Caves | Allies destroyed IY-VC4(f) 6945 | -6/Proximity Caves | Spotted 2A-NOJ(f) 6946 | -6/Proximity Caves | Encountered a Master Thief 6947 | -6/Proximity Caves | Antimatter Reactor stolen by Master Thief 6948 | -6/Proximity Caves | Destroyed 2A-NOJ(f) 6956 | -6/Proximity Caves | Upgraded with Weapon slot (x1) 7159 | -6/Proximity Caves | Spotted U6-YJF(f) 7161 | -6/Proximity Caves | Encountered a Master Thief 7163 | -6/Proximity Caves | Antimatter Reactor stolen by Master Thief 7235 | -6/Proximity Caves | Entered Factory 7235 | -6/Factory | Accompanied by 1 ally 7237 | -6/Factory | Loaded intel: 20 terminal locations 7237 | -6/Factory | Reached level 16 7238 | -6/Factory | Loaded intel: 4 scanalyzer locations 7245 | -6/Factory | Build established: Messiah-Gladiator 7401 | -6/Factory | Zion Light squad teleported in 8454 | -6/Factory | Reached level 17 8538 | -6/Factory | Local fabrication network quarantined 8578 | -6/Factory | Fabricated Chainsword (x2) 8677 | -6/Factory | Build established: Messiah-Assassin 8730 | -6/Factory | Identified exit to Factory 8730 | -6/Factory | Discovered exit to Factory (range 12) 8757 | -6/Factory | Retrieved Zion intel report: Branch Access 8757 | -6/Factory | Identified exit to Lower Caves 8879 | -6/Factory | Zion Light squad teleported in 9103 | -6/Factory | Zion Recon squad teleported in 9141 | -6/Factory | Entered Lower Caves 9141 | -6/Lower Caves | Accompanied by 5 allies 9184 | -6/Lower Caves | Encountered a Warlord checkpoint 9354 | -6/Lower Caves | Reached level 18 9455 | -6/Lower Caves | Learned Factory terminal intel 9546 | -6/Lower Caves | Spotted YN-KIG(f) 9547 | -6/Lower Caves | Encountered a Master Thief 9549 | -6/Lower Caves | Destroyed YN-KIG(f) 9591 | -6/Lower Caves | Identified exit to Lower Caves 9591 | -6/Lower Caves | Discovered exit to Lower Caves (range 7) 9594 | -6/Lower Caves | Entered another Lower Caves area 9594 | -6/Lower Caves | Accompanied by 2 allies 9608 | -6/Lower Caves | Learned Factory emergency access door positions 9627 | -6/Lower Caves | Discovered exit to Factory (range 11) 9651 | -6/Lower Caves | Learned Factory garrison access intel 9713 | -6/Lower Caves | Build established: Messiah-Scout 9881 | -6/Lower Caves | Encountered a Warlord checkpoint 9898 | -6/Lower Caves | Identified exit to Data Miner 9898 | -6/Lower Caves | Discovered exit to Data Miner (range 10) 9924 | -6/Lower Caves | Entered Data Miner 9924 | -6/Data Miner | Accompanied by 1 ally 9924 | -6/Data Miner | Identified exit to Proximity Caves 9924 | -6/Data Miner | Discovered exit to Proximity Caves (range 6) 9934 | -6/Data Miner | Met Data Miner 9959 | -6/Data Miner | Learned location of Section 7 (-2) 9959 | -6/Data Miner | Acquired the access code to Warlord's prototype stash 10018 | -6/Data Miner | Received God Mode back door access code from Data Miner 10150 | -6/Data Miner | Entered Proximity Caves 10150 | -5/Proximity Caves | Accompanied by 1 ally 10152 | -5/Proximity Caves | Reached level 19 10245 | -5/Proximity Caves | Upgraded with Utility slot (x1) 10355 | -5/Proximity Caves | Spotted UP-JB2(f) 10357 | -5/Proximity Caves | Encountered a Master Thief 10357 | -5/Proximity Caves | Destroyed UP-JB2(f) 10359 | -5/Proximity Caves | Escorted by Enhanced Grunt 10633 | -5/Proximity Caves | Spotted B-75 Beast 10678 | -5/Proximity Caves | Learned Factory interactive machine intel 10690 | -5/Proximity Caves | Spotted KB-TKK(f) 10690 | -5/Proximity Caves | Spotted FQ-7M5(f) 10691 | -5/Proximity Caves | Encountered a Master Thief 10691 | -5/Proximity Caves | Encountered a Master Thief 10698 | -5/Proximity Caves | Master Tearclaws stolen by Master Thief 10699 | -5/Proximity Caves | Destroyed FQ-7M5(f) 10705 | -5/Proximity Caves | Zio. Glidesys I stolen by Master Thief 10754 | -5/Proximity Caves | Spotted VP-XG5(f) 10754 | -5/Proximity Caves | Spotted 0N-37D(f) 10755 | -5/Proximity Caves | Encountered a Master Thief 10756 | -5/Proximity Caves | Encountered a Master Thief 10756 | -5/Proximity Caves | Nanoactuators stolen by Master Thief 10756 | -5/Proximity Caves | Master Tearclaws stolen by Master Thief 10783 | -5/Proximity Caves | Spotted 90-SLZ(f) 10784 | -5/Proximity Caves | Encountered a Master Thief 10787 | -5/Proximity Caves | Allies destroyed 90-SLZ(f) 10794 | -5/Proximity Caves | Spotted U4-1E4(f) 10795 | -5/Proximity Caves | Encountered a Master Thief 10799 | -5/Proximity Caves | Destroyed U4-1E4(f) 11118 | -5/Proximity Caves | Discovered exit to Factory (range 18) 11133 | -5/Proximity Caves | Entered Factory 11134 | -5/Factory | Identified exit to Upper Caves 11134 | -5/Factory | Identified exit to Extension 11135 | -5/Factory | Reached level 20 11136 | -5/Factory | Loaded intel: 47 interactive machine locations 11137 | -5/Factory | Loaded intel: 22 terminal locations 11138 | -5/Factory | Loaded intel: 3 garrison access locations 11190 | -5/Factory | Zion Fire squad teleported in 11209 | -5/Factory | Upgraded with Utility slot (x1) 11280 | -5/Factory | Upgraded with Weapon slot (x1) 11294 | -5/Factory | Spotted B-75 Beast 11331 | -5/Factory | Local fabrication network quarantined 11344 | -5/Factory | Fabricated G-50 Soldier? 11458 | -5/Factory | Reached level 21 11510 | -5/Factory | Build established: Messiah-Ninja 11645 | -5/Factory | Upgraded with Power slot (x1) 11662 | -5/Factory | Entered Extension 11731 | -5/Extension | Spotted B-75 Beast 11789 | -5/Extension | Rescued a captive Derelict 11794 | -5/Extension | Rescued a captive Derelict 11799 | -5/Extension | Zion Offense Resupply teleported in 11834 | -5/Extension | Rescued a captive Derelict 11835 | -5/Extension | Rescued a captive Derelict 11839 | -5/Extension | Zion Fire squad teleported in 11854 | -5/Extension | Upgraded with Weapon slot (x1) 11886 | -5/Extension | Zion Fire squad teleported in 11898 | -5/Extension | Rescued a captive Derelict 12021 | -5/Extension | Spotted B-75 Beast 12036 | -5/Extension | Allies destroyed B-75 Beast 12039 | -5/Extension | Reached level 22 12039 | -5/Extension | Allies destroyed B-75 Beast 12058 | -5/Extension | Retrieved Zion intel report: Active Garrisons 12122 | -5/Extension | Identified exit to Cetus 12122 | -5/Extension | Discovered exit to Cetus (range 19) 12123 | -5/Extension | Identified exit to Factory 12123 | -5/Extension | Discovered exit to Factory (range 17) 12261 | -5/Extension | Energy Cycler disabled 12261 | -5/Extension | Rescued a captive Derelict 12261 | -5/Extension | Rescued a captive Derelict 12262 | -5/Extension | Rescued a captive Derelict 12263 | -5/Extension | Rescued a captive Derelict 12273 | -5/Extension | Rescued a captive Derelict 12352 | -5/Extension | Zion Explosive Resupply teleported in 12523 | -5/Extension | Retrieved Zion intel report: Depthwide Sectors/-1 12529 | -5/Extension | Rescued A7 12754 | -5/Extension | Disrupted transfer network 12774 | -5/Extension | Entered Cetus 12774 | -5/Cetus | Accompanied by 4 allies 12779 | -5/Cetus | Acquired a Cetus Manufacturing Module code from A7 12781 | -5/Cetus | Spotted Cetus Guard 12781 | -5/Cetus | Spotted Cetus Guard 12783 | -5/Cetus | Spotted Cetus Guard 12783 | -5/Cetus | Spotted Cetus Guard 12797 | -5/Cetus | Allies destroyed Cetus Guard 12814 | -5/Cetus | Destroyed Cetus Guard 12817 | -5/Cetus | Destroyed Cetus Guard 12821 | -5/Cetus | Destroyed Cetus Guard 12890 | -5/Cetus | Zion Thermal Resupply teleported in 12895 | -5/Cetus | Zion Light squad teleported in 12920 | -5/Cetus | Zion Melee Resupply teleported in 13007 | -5/Cetus | Discovered exit to Factory (range 19) 13077 | -5/Cetus | Cetus Manufacturing Module disabled 13080 | -5/Cetus | Reached level 23 13130 | -5/Cetus | Build established: Messiah-Assassin 13269 | -5/Cetus | Identified exit to Archives 13269 | -5/Cetus | Discovered exit to Archives (range 18) 13311 | -5/Cetus | Spotted Cetus Guard 13312 | -5/Cetus | Spotted Cetus Guard 13313 | -5/Cetus | Spotted Cetus Guard 13317 | -5/Cetus | Spotted Cetus Guard 13353 | -5/Cetus | Extracted ID and sensor layout for unrecognized location from A7's data core 13364 | -5/Cetus | Upgraded with Propulsion slot (x1) 13375 | -5/Cetus | Upgraded with Propulsion slot (x1) 13425 | -5/Cetus | Destroyed Cetus Guard 13431 | -5/Cetus | Destroyed Cetus Guard 13461 | -5/Cetus | Discovered exit to Factory (range 19) 13466 | -5/Cetus | Scared off Revision 17 13516 | -5/Cetus | Entered Archives 13620 | -5/Archives | Unable to access archive contents 13622 | -5/Archives | Discovered exit to Factory (range 17) 13625 | -5/Archives | Identified exit to Hub_04(d) 13625 | -5/Archives | Discovered exit to Hub_04(d) (range 15) 13671 | -5/Archives | Build established: Messiah-Ninja 13677 | -5/Archives | Unable to access archive contents 13679 | -5/Archives | Discovered exit to Hub_04(d) (range 16) 13682 | -5/Archives | Unable to access archive contents 13690 | -5/Archives | Unable to access archive contents 13750 | -5/Archives | Entered Hub_04(d) 13753 | -5/Hub_04(d) | Zion Fire squad teleported in 13861 | -5/Hub_04(d) | Zion Hacker squad teleported in 13901 | -5/Hub_04(d) | Zion Heavy squad teleported in 13970 | -5/Hub_04(d) | Discovered exit to Factory (range 7) 14027 | -5/Hub_04(d) | Discovered exit to Factory (range 6) 14065 | -5/Hub_04(d) | Discovered exit to Factory (range 11) 14083 | -5/Hub_04(d) | Network Hub disabled 14098 | -5/Hub_04(d) | Spotted Lightning 14103 | -5/Hub_04(d) | Spotted Lightning 14104 | -5/Hub_04(d) | Spotted Lightning 14105 | -5/Hub_04(d) | Spotted Lightning 14105 | -5/Hub_04(d) | Spotted Lightning 14109 | -5/Hub_04(d) | Spotted Lightning 14113 | -5/Hub_04(d) | Entered Factory 14115 | -4/Factory | Reached level 24 14204 | -4/Factory | Zion Light squad teleported in 14239 | -4/Factory | Found Prototype Slashing Weapon 14239 | -4/Factory | Identified Molecular Scythe 14251 | -4/Factory | Spotted B-86 Titan 14267 | -4/Factory | Identified exit to Research 14267 | -4/Factory | Discovered exit to Research (range 6) 14270 | -4/Factory | Entered Research 14272 | -3/Research | Reached level 25 14272 | -3/Research | Reached level 26 14278 | -3/Research | Upgraded with Weapon slot (x1) 14278 | -3/Research | Found Enh. Force Lance 14289 | -3/Research | Zion Heavy Resupply teleported in 14474 | -3/Research | Identified exit to Research 14474 | -3/Research | Discovered exit to Research (range 22) 14705 | -3/Research | Entered another Research area 14707 | -2/Research | Reached level 27 14725 | -2/Research | Zion hero teleported in (NK-0LA) 14784 | -2/Research | Identified exit to Testing 14784 | -2/Research | Discovered exit to Testing (range 19) 14878 | -2/Research | Entered Testing 14878 | -2/Testing | Accompanied by 1 ally 14880 | -2/Testing | Reached level 28 14898 | -2/Testing | Incoming investigation squad redirected 14903 | -2/Testing | Spotted PL-5WIZMW9L0Z 14925 | -2/Testing | Identified exit to Access 14925 | -2/Testing | Discovered exit to Access (range 18) 14962 | -2/Testing | Entered Access 14962 | -1/Access | Accompanied by 2 allies 14964 | -1/Access | Reached level 29 14964 | -1/Access | Reached level 30 15035 | -1/Access | Found Prototype Slashing Weapon 15035 | -1/Access | Identified Nanosword 15245 | -1/Access | Zion Zionite Resupply teleported in 15338 | -1/Access | Zion Defense Resupply teleported in 15351 | -1/Access | Reached level 31 15417 | -1/Access | Crushed by falling debris 15430 | -1/Access | Reached level 32 15435 | -1/Access | Core integrity fell below 50% 15465 | -1/Access | Destroyed 7 combat bots 15500 | -1/Access | Identified exit to Command 15500 | -1/Access | Discovered exit to Command (range 8) 15513 | -1/Access | Zion Infowar Resupply teleported in 15520 | -1/Access | Zion Infowar Resupply teleported in 15524 | -1/Access | Zion Recon squad teleported in 15596 | -1/Access | Entered Command 15596 | -1/Command | Accompanied by 4 allies 15598 | -1/Command | Reached level 33 15607 | -1/Command | Spotted B-99 Colossus 15633 | -1/Command | Disengaged cave seal 15633 | -1/Command | Zionites emerged from the dark tunnel 15759 | -1/Command | Reached level 34 15794 | -1/Command | Retrieved Zion intel report: Main Access 15794 | -1/Command | Identified exit to Surface 15796 | -1/Command | Destroyed 7 combat bots 15803 | -1/Command | Spotted B-99 Colossus 15817 | -1/Command | Spotted M Guard 15817 | -1/Command | Spotted M Guard 15817 | -1/Command | Spotted Combat Programmer 15817 | -1/Command | Spotted Combat Programmer 15888 | -1/Command | Spotted Striker 15888 | -1/Command | Spotted Alpha 7 15889 | -1/Command | Spotted Alpha 7 15890 | -1/Command | Spotted Striker 15890 | -1/Command | Spotted Executioner 15890 | -1/Command | Spotted Executioner 15890 | -1/Command | Spotted B-99 Colossus 15890 | -1/Command | Spotted Executioner 15890 | -1/Command | Spotted Executioner 15890 | -1/Command | Destroyed Striker 15891 | -1/Command | Spotted B-99 Colossus 15914 | *** | Escaped! Last Messages --------------- 15908_ Slug penetrates Reinforced Barrier. 15908_ Penetrated by Slug. 15908_ Slug penetrates B-99 Colossus. 15909_ Slug penetrates Wall. 15909_ Slug penetrates Alpha 7. 15909_ Slug penetrates Reinforced Barrier. 15909_ Slug penetrates Wall. 15910_ Protomatter-56 decays. 15910_ Slug penetrates Access Shell. 15910_ Slug penetrates Wall. 15910_ Penetrated by Slug. 15910_ Slug penetrates Wall. 15911_ The Access Shell folds into the floor. 15911_ Penetrated by Slug. 15911_ Slug penetrates Wall. 15912_ B-99 Colossus activates siege mode. 15912_ Slug penetrates Wall. 15914_ Penetrated by Slug. [Achievement: Epsilon Run] [Achievement: Derelict Escape] Map ----- +----------------------------------------------------+ | | | | | | | | | | | | | | | | | | | | | ??????????????????##????#????????????????????????? | | ?????????????????#?#???#??#????#??????#??????????? | | ??????????????????#?????##???????#???#?#?????????? | | ??????????????#???#?#??#???#?????#???????????????? | | ?????????????????#???#?????????????????#?????????? | | ??????????????##?#??????????#??#????###??????????? | | ????????#???###?#??#???????#??#?#?????##?????????? | | ????????????????#??????##??###??###?#???#????????? | | ??????????##?????#??#?##??##??????#???##?????????? | | ????????#??????????####;##;#######?????##?#??????? | | ?????????#???##????# ;##??????????????? | | ?????????????????#?# ;#?#??#???##?????? | | ??????????#????#??## ##???????????#???? | | ??????????#??#?#?### #?##????#??#?????? | | ?????????????#?##### ###?#??###??#????? | | ??????????????####?# @" ##########???#???? | | ???????? ???####?## "" ^ #?####?##?##?##??? | | ???????????#??#?#?## ######?#?#??#????? | | ?????????????####?## ############??##?? | | ????????? ??######## ^ #?####?####?##???? | | ?????? ? ########## #######?######??#? | | ??? ?? ? ########## ###########?##?#?? | | ??##???################ ^ ^;####?####?#######??? | | ???#? ?? + ##### ^^ #################??? | | ??#?? ? #? ###### ^ ;##############?#??#? | | ### ### # ##### ^ ;######?#####??## ?? | | #?# ??#? # ?######^^ BB ;;# ############## ?? | | ?##? ### # "" ## ^ BBE ;#####?### ? ?? | | ? ?? + # """### BB ^;;######### """ ? ?? | | # ### + T"## EBB ;######?## """??# ? | | ? #? #### # """##;^ ^ E7;;#########?""""?# ?? | | ? ?# #### # "" ##; ^ 7 ########### ?"" #+?? | | ??## ??### # #####;;////!########### ??#??? | | ?## #?## # ##### ;! " ###########+##?##??? | | ?## #### # ##### =% ############# ? ?? ??? | | ???? ####+########## "* "############ #?#?? | | ?### # *!!%!## =!=!%! " ##### ## ?#?##??? | | #### " !*!*!|#""%*!%== "####### # ? ??? | | ?### # = %[=!/%*[%[%= "####### ## # ? ???? | | #### # |![!*#"/*!#!! "######## ### # ????? | +----------------------------------------------------+ Best States ------------- Heat Dissipation 73 Coolant Potential 65 Energy Generation 60 Energy Capacity 810 Matter Stores 300 Matter Capacity 300 Sight Range 21 Robot Scan Range 32 Terrain Scan Range 20 Terrain Scan Density 835 ECM Strength 3 Cloak Strength 2 Armor Coverage 600 Resistance: KI 35 Resistance: TH 35 Resistance: EX 55 Resistance: EM 35 Resistance: I 35 Resistance: S 35 Resistance: P 35 Melee Speed Boost 30 Evasion (%) 70 Targeting Accuracy 5 Melee Accuracy 16 Recoil Reduction 1 Particle Charging 15 Offensive Hacking 50 Defensive Hacking 27 Item Schematics ----------------- Chainsword | -7/Factory | Hacked Riot Gun | -7/Zion | Free Barrage Gun | -7/Zion | Free Battle Cannon | -7/Zion | Free Flamer | -7/Zion | Free Ripper | -7/Zion | Free Combat Drone Bay | -6/Data Miner | Free Lgt. Regenerative Plating | -6/Data Miner | Free Exp. Flexi-carbon Leg | -6/Data Miner | Free Cmb. Gravmag System | -6/Data Miner | Free Exp. Sensor Array | -6/Data Miner | Free Exp. Terrain Scan Processor | -6/Data Miner | Free Tactical Coordination Suite | -6/Data Miner | Free Cloaking Device | -6/Data Miner | Free Mni. Smartbomb Launcher | -6/Data Miner | Free Plasma Sword | -6/Data Miner | Free Kinetic Spear | -6/Data Miner | Free Robot Schematics ------------------ S-27 Virus | -6/Data Miner | Free G-50 Soldier | -6/Data Miner | Free G-67 Veteran | -6/Data Miner | Free I-36 Angel | -6/Data Miner | Free H-66 Slayer | -6/Data Miner | Free I-47 Archangel | -6/Data Miner | Free Fabricated ------------ Chainsword | x2 | -6/Factory G-50 Soldier | x3 | -5/Factory Alien Tech Used ----------------- None Achievements -------------- Beloved Deadly Force Denied? Derelict Escape Epsilon Run Prison Break Revising The Future The Oracle Challenges ------------ None RPGLIKE | -11 -10 -10 -10 -9 -8 -7 -7 -7 -7 -6 -6 -6 -6 -6 -5 -5 -5 -5 -5 -5 -4 -3 -2 -2 -1 -1 --------- Run | Scr Mat Min Exi Min Mat Fac Low Low Zio Pro Fac Low Low Dat Pro Fac Ext Cet Arc Hub Fac Res Res Tes Acc Com Levels Raised 33 | . . . 1 1 4 3 1 . 1 3 2 1 . . 1 2 1 1 . . 1 2 1 1 4 2 XP Earned 56019 | 6000 890 500 350 1262 6954 4762 500 500 800 4715 3603 816 292 316 1896 2204 2031 1050 210 606 1406 2173 2600 1500 4836 3247 XP Spent 55230 | 270 4970 . 1600 . 800 5400 500 2200 800 5750 2425 . . . 2300 5420 2000 4550 . . . 2300 1500 . 665 11780 Upgrades 115 | 3 19 . 2 . 1 10 1 3 1 5 7 . . . 1 7 1 6 . . . 1 3 . 6 38 Power Slot 2 | . . . . . . . . . . 1 . . . . . 1 . . . . . . . . . . Propulsion Slot 5 | . 2 . 1 . . . . . . . . . . . . . . 2 . . . . . . . . Utility Slot 8 | . 1 . . . 1 2 . 1 . 1 . . . . 1 1 . . . . . . . . . . Weapon Slot 7 | . . . 1 . . . . . 1 2 . . . . . 1 1 . . . . 1 . . . . Core Integrity 48 | . . . . . . . . . . . 5 . . . . . . . . . . . . . 5 38 Heat Dissipation 8 | . . . . . . . . . . . . . . . . 4 . 3 . . . . . . 1 . Inventory Capacity 4 | . 1 . . . . . 1 . . 1 . . . . . . . 1 . . . . . . . . Sight Range 3 | . 3 . . . . . . . . . . . . . . . . . . . . . . . . . Sensor Range 8 | . 8 . . . . . . . . . . . . . . . . . . . . . . . . . Terrain Scan Density 7 | 3 4 . . . . . . . . . . . . . . . . . . . . . . . . . Melee Accuracy 2 | . . . . . . . . 2 . . . . . . . . . . . . . . . . . . Hack Attack % 6 | . . . . . . 4 . . . . 2 . . . . . . . . . . . . . . . Hack Defense % 3 | . . . . . . . . . . . . . . . . . . . . . . . 3 . . . EX Resistance % 4 | . . . . . . 4 . . . . . . . . . . . . . . . . . . . . Protomatter Created 2542 | . . . . . 111 79 . . . 76 334 60 . . 69 192 434 140 264 139 27 81 83 . 250 203 Integrity Restored 5829 | . . . . . 111 54 . . . 419 958 176 . . 204 484 376 522 777 252 81 . 249 . 701 465 Core 3933 | . . . . . 111 54 . . . 187 614 121 . . 168 290 229 391 528 9 81 . 249 . 436 465 Parts 1896 | . . . . . . . . . . 232 344 55 . . 36 194 147 131 249 243 . . . . 265 . Protomatter Decayed 2553 | . . . . . . . . . . 384 202 . 12 . 176 170 748 226 . 54 . 81 . . 264 236 Game ------ Seed RelaySubatomicSystem Manual? 0 Play Time 03:26:28 Cumulative 75.7 hours Start 2020.01.16 @ 21:44:34 End 2020.01.17 @ 01:13:00 Sessions 1 Manual Loads 0 Difficulty Explorer Special Mode Winter2019/RPGLIKE Game No. 60 Rogue 51 Adventurer 0 Explorer 9 Win Type 0 Total 1 Types 1/0/0/0/0/0/0 Lore% 41 Gallery% 44 Achievement% 39 Wizard Run 0 Options --------- ASCII 0 Keyboard 1 Movement Vi Keybinds 0 Fullscreen 1 Font 18/X11Bold Map View 76x50 Tactical HUD 1 Map Filters NONE Filters LOW_CONTRAST(47,30,31)|SHIFT_HUE(1) Steam 1 RUN: b5eb24eb-2499-48c6-9c40-17decb4312f1